[Event "Mitropa Cup Women 2022"]
[Site "Corte"]
[Date "2022.05.05"]
[Round "6.5"]
[White "Borosova, Zuzana"]
[Black "Gaal, Zsoka"]
[Result "1/2-1/2"]
[ECO "B47"]
[WhiteElo "2265"]
[BlackElo "2323"]
[Annotator "TA"]
[PlyCount "81"]
[EventDate "2022.04.30"]
[EventType "team-tourn"]
[EventCountry "FRA"]
[SourceTitle "playchess.com"]
[Source "ChessBase"]
[SourceQuality "1"]
[WhiteTeam "Slovakia"]
[BlackTeam "Hungary"]
[WhiteTeamCountry "SVK"]
[BlackTeamCountry "HUN"]
[TimeControl "40/5400+30:1800+30"]

{[%evp 13,81,24,65,55,47,34,53,44,65,67,95,104,103,102,100,83,79,89,108,114,100,83,74,68,72,27,32,29,39,46,42,53,33,0,1,0,16,14,20,17,104,107,107,0,0,0,0,0,9,10,14,5,30,32,40,0,0,0,0,0,0,0,0,0,0,0,0,0,0,0]} 1. e4 {[%emt 0:00:03]} c5 {[%emt 0:00:12]} 2. Nf3 {[%emt 0:00:20][%cal Bg1f3,Bf3d4,Bd4b3][%mdl 32]} e6 {[%emt 0:00:12]} 3. d4 {[%emt 0:01:14]} cxd4 {[%emt 0:00:11]} 4. Nxd4 {[%emt 0:00:06]} Nc6 {[%emt 0:00:15]} 5. Nc3 {[%emt 0:03:41]} Qc7 {[%emt 0:00:23]} 6. g3 {[%emt 0:16:28]} a6 {[%emt 0:01:15]} 7. Bg2 {[%emt 0:00:26]} Bc5 {[%emt 0:21:02]} 8. Nb3 {[%emt 0:04:41] B47: Sicilian: Taimanov: 5 Nc3 Qc7 6 f4, 6 g3 and 6 Be2.} Be7 {[%emt 0:00:34]} 9. O-O {[%emt 0:04:04]} Nf6 {[%emt 0:01:02]} 10. a4 {[%emt 0:07:31] White is slightly better.} O-O {[%emt 0:05:41]} 11. a5 {[%emt 0:15:24] [#]} b5 $146 {[%emt 0:11:06]} ({Predecessor:} 11... Bb4 12. Ra4 Bxa5 13. Nxa5 Nxa5 14. Bf4 e5 15. Bg5 b5 16. Bxf6 gxf6 17. Nd5 Qd8 18. Qd2 Bb7 19. Rxa5 {1-0 (19) Stevanovic,N (2034)-Bayani,K (1979) Pretoria 2018}) 12. axb6 $1 {[%emt 0:03:59]} Qxb6 {[%emt 0:01:41]} 13. e5 {[%emt 0:07:57]} Ne8 {[%emt 0:00:57]} 14. Be3 {[%emt 0:01:05]} Qc7 {[%emt 0:02:43] [#]} 15. Na5 $1 {[%emt 0:22:11] White is much more active.} Rb8 {[%emt 0:03:38] Against Nb5} (15... Nxa5 16. Bxa8) 16. Nxc6 {[%emt 0:00:03]} dxc6 {[%emt 0:00:06]} 17. Na4 {[%emt 0:00:23]} c5 {[%emt 0:04:54]} 18. Qd3 {[%emt 0:01:34]} Bd7 {[%emt 0:13:05]} 19. Rfd1 {[%emt 0:00:57]} Bxa4 {[%emt 0:06:57]} 20. Rxa4 {[%emt 0:00:01] Threatens to win with Qc3.} Rd8 {[%emt 0:01:02]} 21. Qe2 {[%emt 0:01:30] Strongly threatening Rxd8.} Rxd1+ {[%emt 0:02:02]} 22. Qxd1 {[%emt 0:00:01]} Qxe5 {[%emt 0:00:59]} 23. Rxa6 {[%emt 0:04:12] With the idea Qd7.} Nf6 {[%emt 0:03:40] Against Qd7} 24. c3 {[%emt 0:02:57]} Nd5 {[%emt 0:02:00]} 25. Bd2 {[%emt 0:00:22]} Rd8 {[%emt 0:01:32]} 26. Qe1 {[%emt 0:00:29]} Qb8 {[%emt 0:03:39]} (26... Qh5 $11) 27. Bxd5 $16 {[%emt 0:00:50]} Rxd5 {[%emt 0:01:23] [#]} 28. c4 {[%emt 0:00:12]} (28. Rxe6 $1 $16 {[%mdl 512]} Bf8 29. Re8) 28... Rd8 {[%emt 0:00:57]} 29. Bc3 {[%emt 0:00:24]} Qb3 {[%emt 0:00:42] White must now prevent ...Rd1.} 30. Qe4 {[%emt 0:00:45]} h5 {[%emt 0:05:21]} 31. Kg2 {[%emt 0:00:44]} Qd1 {[%emt 0:03:52]} 32. Ra7 {[%emt 0:00:41]} Rd7 {[%emt 0:01:23]} 33. Ra8+ {[%emt 0:00:17]} Rd8 {[%emt 0:00:03]} 34. Rxd8+ {[%emt 0:01:14]} (34. Qe5 $5 Bf6 35. Rxd8+ Qxd8 36. Qxh5 $16 (36. Qxc5 Bxc3 37. bxc3 Qa8+ 38. f3 Qa2+ 39. Kg1 Qa1+ 40. Kg2 Qa2+ 41. Kh3 Qe2 $11)) 34... Qxd8 $14 {[%emt 0:00:50][%mdl 4096] Endgame KQB-KQB. The position is equal.} 35. Qe5 {[%emt 0:00:16][%csl Gc3,LRg7,LRh5][%cal Re5g7]} Qa8+ {[%emt 0:01:26]} 36. Kh3 {[%emt 0:00:47][%csl Gc3][%cal Re5g7]} Bf6 {[%emt 0:01:06]} 37. Qxc5 {[%emt 0:00:19] Hoping for Bxf6.} Bxc3 {[%emt 0:00:31]} 38. bxc3 {[%emt 0:00:01]} Qf3 {[%emt 0:00:32]} 39. Qe3 {[%emt 0:00:46]} Qg4+ {[%emt 0:00:10]} 40. Kg2 {[%emt 0:00:04] aiming for Qd4.} Qxc4 {[%emt 0:00:06]} 41. h4 {[%emt 0:03:10] Weighted Error Value: White=0.09 (flawless) /Black=0.13 (very precise)} 1/2-1/2

[Event "Mitropa Cup Women 2022"]
[Site "Corte"]
[Date "2022.05.05"]
[Round "6.5"]
[White "Trippold, Denise"]
[Black "Movsesian, Julia"]
[Result "1-0"]
[ECO "A06"]
[WhiteElo "2147"]
[BlackElo "2313"]
[Annotator "TA"]
[PlyCount "87"]
[EventDate "2022.04.30"]
[EventType "team-tourn"]
[EventCountry "FRA"]
[SourceTitle "playchess.com"]
[Source "ChessBase"]
[SourceQuality "1"]
[WhiteTeam "Austria"]
[BlackTeam "Czech Republic"]
[WhiteTeamCountry "AUT"]
[BlackTeamCountry "CZE"]
[TimeControl "40/5400+30:1800+30"]

{[%evp 9,87,8,10,8,14,6,12,0,4,-10,21,20,16,22,37,37,26,16,14,12,49,21,33,26,22,33,57,38,64,52,68,40,37,17,34,26,37,8,14,11,12,20,22,23,29,3,5,4,17,5,20,16,14,16,14,22,15,0,8,9,50,24,35,37,50,0,18,22,8,0,72,0,5197,5185,6818,5789,6386,6378,5297,5269]} 1. Nf3 {[%emt 0:00:04]} d5 {[%emt 0:01:08]} 2. c4 {[%emt 0:00:28]} e6 {[%emt 0:00:28]} 3. e3 {[%emt 0:00:18]} Nf6 {[%emt 0:00:28]} 4. Nc3 {[%emt 0:00:45]} Be7 {[%emt 0:00:08]} 5. b3 {[%emt 0:00:29]} b6 {[%emt 0:02:16]} 6. cxd5 {[%emt 0:01:20] A17: English Opening: 1...Nf6 with ...Bb4.} exd5 {[%emt 0:00:32]} 7. Bb2 {[%emt 0:03:05]} O-O {[%emt 0:01:36]} 8. g3 {[%emt 0:04:25] The position is equal.} c5 {[%emt 0:08:26]} 9. d4 {[%emt 0:05:05]} Bb7 {[%emt 0:16:26]} (9... Ne4 {looks sharper.} 10. Rc1 Nc6 11. Bb5 Nb4) 10. Bg2 {[%emt 0:01:10]} Ba6 {[%emt 0:03:13]} 11. Ne2 {[%emt 0:03:33] [#]} cxd4 $146 {[%emt 0:10:37]} ({Predecessor:} 11... Nc6 12. a3 cxd4 13. exd4 Re8 14. Ne5 Nxe5 15. dxe5 Bd6 16. f4 Rc8 17. Bf3 Bc5 18. exf6 {1-0 (33) Mejia,D (1837)-Izaba,R (2120) Managua 2016}) 12. Nfxd4 {[%emt 0:02:55]} Bb4+ $1 {[%emt 0:01:04]} 13. Bc3 {[%emt 0:00:41]} Bxc3+ {[%emt 0:04:47]} 14. Nxc3 {[%emt 0:00:07]} Qd7 {[%emt 0:00:09]} 15. Nce2 {[%emt 0:12:05]} Nc6 {[%emt 0:06:25]} 16. Nxc6 {[%emt 0:06:11]} Qxc6 {[%emt 0:00:02]} 17. O-O {[%emt 0:00:46]} Rad8 {[%emt 0:00:24]} 18. Nd4 {[%emt 0:08:33]} Qd7 {[%emt 0:03:41]} 19. Re1 {[%emt 0:00:24]} Ne4 {[%emt 0:00:18]} 20. Rc1 {[%emt 0:06:07]} Rc8 {[%emt 0:03:58]} 21. f3 {[%emt 0:24:00] [#] Black must now prevent Rxc8.} Nf6 {[%emt 0:09:32]} 22. Qd2 {[%emt 0:01:13]} h6 {[%emt 0:00:54]} 23. Bf1 {[%emt 0:01:29]} Bxf1 {[%emt 0:03:38]} 24. Rxf1 {[%emt 0:00:03][%cal Be1f1,Bf1c1,Bc1c2][%mdl 32]} Rfe8 {[%emt 0:05:04][%cal Bf8e8,Be8c8,Bc8c5][%mdl 32]} 25. Rxc8 {[%emt 0:00:59]} Rxc8 {[%emt 0:01:35]} 26. Rc1 {[%emt 0:01:59]} Rc5 {[%emt 0:00:27]} 27. Rc2 {[%emt 0:07:49]} Qc8 {[%emt 0:02:51]} 28. Kg2 {[%emt 0:00:45]} Ne8 {[%emt 0:04:09]} 29. Qd3 {[%emt 0:01:04]} Nd6 {[%emt 0:00:19]} 30. g4 {[%emt 0:03:02]} g6 {[%emt 0:03:02]} 31. Rxc5 {[%emt 0:02:12]} Qxc5 $11 {[%emt 0:00:17][%mdl 4096] Endgame KQN-KQN} 32. Ne2 {[%emt 0:00:21]} Ne8 {[%emt 0:01:17]} 33. h4 {[%emt 0:00:24]} Qe7 {[%emt 0:01:15]} 34. Kh3 {[%emt 0:01:57]} Nf6 {[%emt 0:00:10]} 35. Qd4 {[%emt 0:00:49]} Ne8 {[%emt 0:02:04]} 36. Nf4 {[%emt 0:00:09]} Nc7 {[%emt 0:00:07]} 37. Kg3 {[%emt 0:01:22]} (37. h5 $14) 37... Qa3 {[%emt 0:01:29]} 38. Qf6 $36 {[%emt 0:00:29][%mdl 2048] Qd8+ is the strong threat. White has the initiative.} Qc1 $1 {[%emt 0:00:30]} 39. h5 {[%emt 0:00:47]} Qe1+ {[%emt 0:03:24] [#]} (39... g5 $1 $11 {remains equal.} 40. Qd8+ Kg7) 40. Kg2 {[%emt 0:00:19] White is more active.} (40. Kh2 $1 $16 Ne8 41. Qe5) 40... gxh5 {[%emt 0:01:29][%mdl 8192]} (40... Ne8 $2 41. Qe5 Kf8 42. Qh8+ (42. Nxd5 Qe2+ 43. Kg3 Qe1+ 44. Kf4 g5+ 45. Ke4 Qb1+ 46. Kd4 Qb2+ 47. Nc3 f6 $16) 42... Ke7 43. hxg6 Qd2+ 44. Kf1 Qd1+ 45. Kg2 Qd2+ 46. Kf1 Qc1+ 47. Kf2 Qd2+ 48. Kf1 $18) (40... Qd2+ $11 41. Kg3 g5) 41. Qd8+ $18 {[%emt 0:07:53] White is clearly winning.} Kg7 {[%emt 0:01:36]} 42. Nxh5+ {[%emt 0:02:08]} Kh7 {[%emt 0:00:16]} 43. Qxc7 {[%emt 0:01:33]} Qe2+ {[%emt 0:02:10]} 44. Kg3 {[%emt 0:00:22] Weighted Error Value: White=0.11 (very precise) /Black=0.12 (very precise)} 1-0

[Event "Mitropa Cup Women 2022"]
[Site "Corte"]
[Date "2022.05.05"]
[Round "6.6"]
[White "Terbe, Zsuzsanna"]
[Black "Nadzamova, Viktoria"]
[Result "1-0"]
[ECO "E20"]
[WhiteElo "2183"]
[BlackElo "2135"]
[Annotator "TA"]
[PlyCount "81"]
[EventDate "2022.04.30"]
[EventType "team-tourn"]
[EventCountry "FRA"]
[SourceTitle "playchess.com"]
[Source "ChessBase"]
[SourceQuality "1"]
[WhiteTeam "Hungary"]
[BlackTeam "Slovakia"]
[WhiteTeamCountry "HUN"]
[BlackTeamCountry "SVK"]
[TimeControl "40/5400+30:1800+30"]

{[%evp 17,81,-16,0,0,28,35,54,4,43,35,183,184,539,114,99,106,227,92,102,87,141,125,162,123,222,118,164,162,197,130,194,139,138,135,145,139,139,124,200,219,203,164,220,228,218,220,238,250,302,295,539,402,755,707,1504,1502,6223,6223,6215,6215,6123,6107,6107,5704,5412,5393]} 1. d4 {[%emt 0:00:02]} Nf6 {[%emt 0:00:20]} 2. c4 {[%emt 0:00:08]} e6 {[%emt 0:00:05]} 3. Nc3 {[%emt 0:00:05]} Bb4 {[%emt 0:00:46]} 4. Bd2 {[%emt 0:00:13]} O-O {[%emt 0:01:05]} 5. e3 {[%emt 0:00:13]} b6 {[%emt 0:01:59]} 6. Bd3 {[%emt 0:00:17]} Bb7 {[%emt 0:00:51]} 7. Nf3 {[%emt 0:00:13]} d5 {[%emt 0:02:15]} 8. cxd5 {[%emt 0:00:27] The main line 8.cxd5 scores better than 8.0-0.} exd5 {[%emt 0:00:46]} 9. O-O {[%emt 0:00:21]} Nbd7 {[%emt 0:05:51]} 10. Ne5 {[%emt 0:05:09] E52: Nimzo-Indian: Rubinstein: 4...0-0 5 Nf3 d5 6 Bd3 b6.} Bd6 {[%emt 0:03:45]} 11. f4 {[%emt 0:00:27]} Ne4 {[%emt 0:05:57]} 12. Rc1 {[%emt 0:05:14]} (12. Nxe4 $14 dxe4 13. Bc4) 12... a6 {[%emt 0:02:08]} 13. Be1 {[%emt 0:03:34] [#]} f6 $146 {[%emt 0:03:17]} (13... Qe8 $14) ({Predecessor:} 13... Ndf6 14. Bh4 Qe8 15. Qf3 c5 16. Bxf6 Nxf6 17. g4 Rd8 18. Rcd1 g6 19. g5 Nh5 {½-½ (32) Giri,A (2764)-Radjabov,T (2765) chess24.com INT 2020}) 14. Bxe4 $18 {[%emt 0:03:15]} fxe5 $2 {[%emt 0:31:30]} (14... dxe4 15. Qb3+ Kh8) 15. Bxd5+ $2 {[%emt 0:02:34]} (15. Nxd5 $18 exd4 16. Qh5 (16. Qxd4 Bc5 $16)) 15... Bxd5 $16 {[%emt 0:00:39]} 16. Nxd5 {[%emt 0:00:08]} exf4 {[%emt 0:00:43]} (16... exd4 $16 {was necessary.} 17. exd4 (17. Qxd4 Bc5 $16) 17... Kh8) 17. Nxf4 {[%emt 0:05:30]} ({Much less strong is} 17. exf4 $6 Rc8 $16) (17. e4 $1 $18 {and the rest is easy.}) 17... Qe7 {[%emt 0:07:33]} 18. Qb3+ {[%emt 0:09:31]} Kh8 {[%emt 0:00:42]} (18... Qf7 $142) 19. Bg3 {[%emt 0:01:57] White is more active.} Qe4 {[%emt 0:06:05]} 20. Ne2 {[%emt 0:06:46]} Qg4 {[%emt 0:03:10]} (20... Nf6 $16) 21. Qd3 {[%emt 0:04:34]} (21. Bxd6 $18 cxd6 22. Rxf8+ Rxf8 23. Nf4) 21... Bxg3 {[%emt 0:02:59]} (21... Rxf1+ $16 {was called for.} 22. Rxf1 Nf6 23. Bxd6 cxd6) 22. Nxg3 {[%emt 0:00:34]} c5 {[%emt 0:00:02]} 23. dxc5 {[%emt 0:06:09]} ({Better is} 23. Rxf8+ $1 $18 Rxf8 24. dxc5 bxc5 25. Qxa6) 23... Nxc5 {[%emt 0:00:13]} (23... Rxf1+ $16 24. Rxf1 (24. Qxf1 Nxc5 25. Qf3 Qxf3 $16) 24... Nxc5) 24. Qd6 {[%emt 0:00:12]} (24. Rxf8+ $18 Rxf8 25. Qd6) 24... Rxf1+ {[%emt 0:01:56]} 25. Rxf1 {[%emt 0:00:39][%cal Od6f8] Qf8+! would kill now.} Qe6 {[%emt 0:00:27]} 26. Qxe6 {[%emt 0:06:18]} Nxe6 {[%emt 0:00:02][%mdl 4096] Endgame KRN-KRN} 27. Rd1 {[%emt 0:01:24]} Rd8 {[%emt 0:00:51] Inhibits Rd6.} (27... b5 $16 28. Ne4 Kg8) 28. Rxd8+ $18 {[%emt 0:00:40]} Nxd8 {[%emt 0:00:02] KN-KN} 29. Kf2 {[%emt 0:00:18]} Nc6 {[%emt 0:00:42]} (29... Kg8 $142 30. Ne4 Nc6) 30. Ke2 {[%emt 0:00:43]} Kg8 {[%emt 0:00:52]} 31. Kd3 $1 {[%emt 0:08:15]} Nb4+ {[%emt 0:02:36]} 32. Kc4 $1 {[%emt 0:00:08]} Nc2 {[%emt 0:00:14]} 33. Nf5 {[%emt 0:06:54] And now Kc3 would win.} g6 $2 {[%emt 0:01:01]} (33... Ne1 {keeps fighting.} 34. g3 Kf7) 34. Kc3 {[%emt 0:00:37]} Ne1 {[%emt 0:00:26] [#]} (34... gxf5 $142 35. Kxc2 Kf8) 35. Nh4 $1 {[%emt 0:00:20] White is clearly winning.} g5 {[%emt 0:01:23] [#]} 36. Kd2 $1 {[%emt 0:00:13]} gxh4 {[%emt 0:00:16]} (36... Nxg2 37. Nxg2) 37. Kxe1 {[%emt 0:00:05]} Kf7 {[%emt 0:00:05]} 38. Kf2 {[%emt 0:00:38]} Ke6 {[%emt 0:02:22]} 39. e4 {[%emt 0:00:11]} Ke5 {[%emt 0:03:22]} 40. Ke3 {[%emt 0:00:34]} b5 {[%emt 0:00:40]} 41. b4 {[%emt 0:30:16] Weighted Error Value: White=0.49/Black=0.82} 1-0

[Event "Mitropa Cup Women 2022"]
[Site "Corte"]
[Date "2022.05.05"]
[Round "6.6"]
[White "Nemcova, Karin"]
[Black "Hapala, Elisabeth"]
[Result "0-1"]
[ECO "A45"]
[WhiteElo "2181"]
[BlackElo "2116"]
[Annotator "TA"]
[PlyCount "96"]
[EventDate "2022.04.30"]
[EventType "team-tourn"]
[EventCountry "FRA"]
[SourceTitle "playchess.com"]
[Source "ChessBase"]
[SourceQuality "1"]
[WhiteTeam "Czech Republic"]
[BlackTeam "Austria"]
[WhiteTeamCountry "CZE"]
[BlackTeamCountry "AUT"]
[TimeControl "40/5400+30:1800+30"]

{[%evp 9,96,22,32,29,32,14,14,0,6,0,0,0,2,0,5,-28,-19,-43,-48,-93,-82,-151,-140,-187,-30,-35,-24,-16,-8,-59,-48,-71,-42,-76,-34,-21,-19,-11,-18,-77,-79,-70,-66,-56,-66,-66,-70,-58,-39,-39,-49,-49,-47,-72,-34,-43,-37,-50,-35,-40,-20,-52,-48,-45,-51,-60,-60,-56,-56,-52,-48,-57,0,-58,-83,-75,-62,-64,-57,-64,0,-31,-38,-117,-102,-143,-141,-141,-100]} 1. d4 {[%emt 0:00:01]} Nf6 {[%emt 0:00:04]} 2. Bf4 {[%emt 0:00:08]} e6 {[%emt 0:00:04]} 3. e3 {[%emt 0:00:12]} c5 {[%emt 0:00:13]} 4. Nf3 {[%emt 0:00:45]} cxd4 {[%emt 0:00:17]} 5. exd4 {[%emt 0:00:10]} b6 {[%emt 0:00:09]} 6. Bd3 {[%emt 0:01:02] A46: 1 d4 Nf6 2 Nf3 e6: Torre, London and Colle Systems.} Be7 {[%emt 0:00:20]} 7. O-O {[%emt 0:00:38]} O-O {[%emt 0:00:13]} 8. Ne5 {[%emt 0:03:32] The position is equal.} Bb7 {[%emt 0:16:58]} 9. Nd2 {[%emt 0:00:47]} d6 {[%emt 0:00:22] [#]} 10. Nef3 $146 {[%emt 0:05:44]} ({Predecessor:} 10. Ng4 Nbd7 11. Re1 Nxg4 12. Qxg4 f5 13. Qe2 Rf6 14. Bg5 Rg6 15. Bxe7 Rxg2+ 16. Kf1 Qxe7 {0-1 (26) Cedeno,R-Garcia S,J (1939) Neiva 2011}) 10... Ba6 {[%emt 0:05:42]} 11. c4 {[%emt 0:08:16]} Nc6 {[%emt 0:22:24]} 12. Qa4 {[%emt 0:06:52][%csl LRa6,LRc6]} Bb7 {[%emt 0:00:28]} 13. Rfe1 {[%emt 0:08:49][%cal Od4d5]} d5 {[%emt 0:02:12]} 14. Rad1 {[%emt 0:05:18]} Nb4 {[%emt 0:06:26]} 15. Be2 {[%emt 0:09:08]} ({White should try} 15. Qb3) 15... dxc4 $17 {[%emt 0:01:44]} 16. Nxc4 {[%emt 0:00:45] [#]} (16. Bxc4 $17 Nfd5 17. Bg3) 16... Nbd5 $2 {[%emt 0:15:38]} (16... a6 $1 $19 {White must now prevent ...Bxf3.} 17. Qb3 b5) 17. Be5 {[%emt 0:02:20]} Qd7 {[%emt 0:02:29]} 18. Qb3 {[%emt 0:03:14]} Rfd8 {[%emt 0:00:55]} 19. Bd3 {[%emt 0:02:04]} (19. Bg3 $11) 19... Rac8 $15 {[%emt 0:01:47]} 20. Bb1 {[%emt 0:03:59]} Ba6 {[%emt 0:07:18]} 21. Nfd2 {[%emt 0:04:48]} Bb4 {[%emt 0:02:41]} 22. Bxf6 {[%emt 0:07:05]} Bxd2 {[%emt 0:00:02]} 23. Ne5 {[%emt 0:02:09][%cal Bc4e5,Be5f3,Bf3g5][%mdl 32]} Qb5 {[%emt 0:03:12]} 24. Qh3 {[%emt 0:12:22]} Nxf6 $17 {[%emt 0:00:30] Dancing on a razor blade.} 25. Rxd2 {[%emt 0:00:08]} Qb4 {[%emt 0:03:16]} 26. Nf3 {[%emt 0:04:07]} Bb7 {[%emt 0:01:18] [#] ...Bxf3 is the strong threat.} 27. a3 {[%emt 0:01:21]} Qa5 {[%emt 0:00:16] Strongly threatening ...Bxf3.} 28. Red1 $1 {[%emt 0:01:22]} Qh5 {[%emt 0:00:41]} 29. Qxh5 {[%emt 0:01:34]} Nxh5 {[%emt 0:00:01]} 30. Ng5 {[%emt 0:01:01]} h6 {[%emt 0:01:10]} 31. Be4 {[%emt 0:01:28]} Bd5 {[%emt 0:02:26]} 32. Bxd5 {[%emt 0:00:44][%cal Od5f3] Threatens to win with Bf3!} Rxd5 {[%emt 0:00:02]} 33. Ne4 {[%emt 0:00:07]} Rd7 {[%emt 0:02:02]} 34. g3 {[%emt 0:01:24]} Rcd8 {[%emt 0:00:41]} 35. f4 f5 {[%emt 0:02:23]} 36. Nc3 {[%emt 0:02:26]} Nf6 {[%emt 0:00:01]} 37. Kf2 {[%emt 0:00:10]} Kf7 {[%emt 0:00:42]} 38. Kf3 {[%emt 0:02:01]} g5 {[%emt 0:00:35]} 39. h3 {[%emt 0:00:54]} a6 {[%emt 0:01:31]} 40. g4 gxf4 {[%emt 0:00:38]} (40... Rd6 $15) 41. Kxf4 {[%emt 0:04:16]} ({White should play} 41. gxf5 $11 e5 42. Rd3) 41... fxg4 $15 {[%emt 0:12:59]} 42. hxg4 Rg8 43. Rg1 {[%emt 0:02:07]} h5 {[%emt 0:05:40]} 44. g5 {[%emt 0:04:27]} Nd5+ {[%emt 0:00:14]} (44... Ng4 $1 $15 45. Ne4 Rf8) 45. Nxd5 {[%emt 0:00:29]} Rxd5 {[%emt 0:00:02]} 46. Rc2 {[%emt 0:09:37]} ({Better is} 46. Rf2 $15) 46... Rf5+ {[%emt 0:05:43]} 47. Ke4 {[%emt 0:00:37]} Rgxg5 {[%emt 0:00:08]} ({And not} 47... Rfxg5 48. Rf1+ Ke7 49. Rc7+ Kd6 50. Rff7 Rg4+ 51. Kd3 $17) 48. Rxg5 {[%emt 0:02:25]} Rxg5 {[%emt 0:00:00] Weighted Error Value: White=0.19 (very precise) /Black=0.15 (very precise)} 0-1

[Event "Mitropa Cup Women 2022"]
[Site "Corte"]
[Date "2022.05.05"]
[Round "6.7"]
[White "Mayrhuber, Nikola"]
[Black "Sikorova, Olga"]
[Result "0-1"]
[ECO "E20"]
[WhiteElo "2086"]
[BlackElo "2173"]
[Annotator "TA"]
[PlyCount "84"]
[EventDate "2022.04.30"]
[EventType "team-tourn"]
[EventCountry "FRA"]
[SourceTitle "playchess.com"]
[Source "ChessBase"]
[SourceQuality "1"]
[WhiteTeam "Austria"]
[BlackTeam "Czech Republic"]
[WhiteTeamCountry "AUT"]
[BlackTeamCountry "CZE"]
[TimeControl "40/5400+30:1800+30"]

{[%evp 15,84,30,25,27,27,25,52,44,48,54,46,45,75,70,75,75,79,10,0,0,14,0,0,0,10,0,2,6,50,0,0,0,0,-47,-25,-81,-82,-102,-47,-58,-30,-178,-189,-297,-183,-192,-205,-273,-268,-257,-256,-336,-334,-300,-284,-315,-311,-287,-275,-269,-266,-502,-512,-435,-486,-1067,-719,-6705,-4698,-29988,-29989]} 1. d4 {[%emt 0:00:02]} Nf6 {[%emt 0:00:06]} 2. c4 {[%emt 0:00:04]} e6 {[%emt 0:00:10]} 3. Nc3 {[%emt 0:00:09]} Bb4 {[%emt 0:00:14]} 4. Bd2 {[%emt 0:00:13]} O-O {[%emt 0:00:20]} 5. e3 {[%emt 0:01:49]} b6 {[%emt 0:00:38]} 6. Nf3 {[%emt 0:00:17]} Bb7 {[%emt 0:00:25]} 7. Bd3 {[%emt 0:00:19]} Bxc3 {[%emt 0:00:46]} 8. Bxc3 {[%emt 0:00:06]} Ne4 {[%emt 0:00:22]} 9. Bxe4 {[%emt 0:02:01] 9.Bxe4 scores better than 9.Rc1. E21: Nimzo-Indian: 4 Nf3.} Bxe4 {[%emt 0:00:11]} 10. d5 {[%emt 0:00:12]} c5 {[%emt 0:01:35] Prevents Qd4.} 11. Nd2 $1 {[%emt 0:13:33] White is slightly better.} Bg6 {[%emt 0:09:48]} 12. h4 {[%emt 0:01:56][%cal Bh2h4,Bh4h5][%mdl 32]} exd5 {[%emt 0:20:21]} 13. cxd5 {[%emt 0:05:12]} f6 {[%emt 0:06:49]} 14. h5 {[%emt 0:03:26]} Bd3 {[%emt 0:01:21] [#]} 15. Nf3 $146 {[%emt 0:09:19]} ({Predecessor:} 15. h6 g6 16. Qf3 d6 17. Ne4 Nd7 18. Ng3 Ne5 19. Bxe5 fxe5 20. Qg4 Qe7 21. O-O-O {0-1 (30) Shcherbine,A (2171)-Real de Azua,E (2445) Buenos Aires 2009}) 15... c4 {[%emt 0:01:50]} 16. Nd4 {[%emt 0:00:58]} (16. b3 $16) 16... Qe7 $11 {[%emt 0:03:46]} 17. Qf3 {[%emt 0:17:33]} Na6 {[%emt 0:04:25][%cal Bb8a6,Ba6c5,Bc5d3][%mdl 32]} 18. Nf5 {[%emt 0:07:26]} Bxf5 {[%emt 0:04:05]} 19. Qxf5 {[%emt 0:00:12]} Nc5 {[%emt 0:00:12]} 20. Rh4 {[%emt 0:03:23]} Nd3+ {[%emt 0:09:14]} 21. Kf1 {[%emt 0:02:06]} b5 {[%emt 0:05:59]} 22. Re4 {[%emt 0:07:36]} (22. d6 $14 Qe6 23. Qxb5) 22... Qd6 {[%emt 0:02:33]} 23. Rg4 {[%emt 0:05:29]} Ne5 {[%emt 0:02:29]} 24. Bxe5 {[%emt 0:06:55]} (24. Rg3 $11 {feels stronger.}) 24... fxe5 $15 {[%emt 0:00:22]} 25. Qg5 {[%emt 0:00:07] [#]} (25. Qe4 $11 {keeps the balance.}) 25... Rf7 $1 $17 {[%emt 0:01:25] Active counter play!} 26. a4 {[%emt 0:01:37]} Qxd5 {[%emt 0:01:11]} (26... Raf8 $17 {Threatens to win with ...h6.} 27. Kg1 a6) 27. Kg1 $15 {[%emt 0:03:46]} b4 {[%emt 0:01:33] White must now prevent ...c3.} 28. Rd4 {[%emt 0:01:10] Now White is beyond hope.} Qe6 $19 {[%emt 0:02:02]} 29. Re4 {[%emt 0:00:25]} (29. Rd2 $142) 29... d6 {[%emt 0:07:31]} 30. Rc1 {[%emt 0:01:01]} Rc8 {[%emt 0:00:41]} 31. Qh4 {[%emt 0:02:04][%cal Re4c4]} d5 {[%emt 0:01:12]} 32. Rg4 {[%emt 0:00:07]} a5 {[%emt 0:00:43]} 33. Rg5 {[%emt 0:01:20]} c3 {[%emt 0:03:14]} 34. bxc3 {[%emt 0:00:39]} bxc3 {[%emt 0:01:59]} 35. Qg3 {[%emt 0:00:10]} Re7 {[%emt 0:01:17]} 36. h6 {[%emt 0:02:50][%cal Rg5g7]} g6 {[%emt 0:00:19]} ({Worse is} 36... Qxh6 37. Rxe5 Rxe5 38. Qxe5 $17) 37. f4 {[%emt 0:00:34]} exf4 {[%emt 0:02:00]} 38. exf4 {[%emt 0:00:05]} (38. Qxf4 {was the only chance.} c2 39. Kh2) 38... d4 {[%emt 0:03:49][%cal Bd5d4,Bd4d3][%mdl 32] [#] Strongly threatening ...Qe4.} 39. Re5 {[%emt 0:01:11] Inhibits Qe4.} Qd6 {[%emt 0:01:05] Hoping for ...Rce8.} 40. Qg4 {[%emt 0:02:27]} (40. Rxe7 $142 Qxe7 41. Qd3) 40... Rce8 {[%emt 0:00:51]} 41. Rxa5 {[%emt 0:03:53]} d3 {[%emt 0:03:02] ( -> ...d2)} 42. Re5 {[%emt 0:09:07]} Qd4+ {[%emt 0:03:03] Weighted Error Value: White=0.75/Black=0.18 (very precise)} 0-1